{"text_format":"3","workbook":"xlsx","n_sheets":1,"sheets":["ANNEXURE A"],"not_rendered":{"images":1,"defined_names":1},"read":"whole","date_system":"1900"}

{"sheet":"ANNEXURE A","index":0,"n_rows":48,"n_cols":8,"rows_kept":48,"merged":[[4,1,5,7],[7,2,7,7],[8,2,8,7],[9,2,9,7],[10,2,10,7],[12,2,12,7],[13,1,13,7],[14,1,14,7],[15,1,15,7],[16,1,16,7],[17,1,17,7],[18,1,18,7],[19,1,19,7],[20,1,20,7],[21,1,21,7],[22,1,22,7],[23,1,23,2],[24,1,25,1],[24,2,25,2],[24,3,25,3],[24,4,25,4],[24,5,25,5],[24,6,25,6],[24,7,25,7],[27,1,28,1],[29,1,31,1],[36,1,36,6],[37,1,37,7],[47,3,47,4]]}
[]
[]
[]
[]
[null,"TENDER PRICING  ANNEXURE A"]
[]
[]
[null,"Tender Number","BID307\\2324"]
[null,"Tender Name","PROVISION OF PROTECTION SERVICES- PHYISCAL SECURITY FOR THE COMPETITION COMMISSION FOR A PERIOD OF 3 YEARS"]
[null,"Bidder Name "]
[null,"Premises","DTIC Building Block C & G"]
[]
[null,"NOTES :  ","Bidders must carefully read the NOTES before completing the Price Template"]
[1,"Bidders are required to complete cost for all columns highlighted in \"Blue\" only, excluding VAT. The formulas are inputted to calculate VAT at 15% under column \"Total Costs Incl. VAT\"."]
[2,"All highlighted cells must be populated and if no rate is inserted it will be regarded as zero."]
[3,"The price validity for this bid is for a period of 120 days from the closing date."]
[4,"Bidders are required to take note of CCSA requirements, as outlined in the Bid document under paragraph \"Scope of Services\", prior to completing the Pricing Template. "]
[5,"All quoted rates are subject to negotiation with the recommended bidders prior to signing and/or on the anniversary of the SLA. Any escalation for consideration will be done in two separate intervals, which means Labour rates as per PSIRA publication date and other costs outside Sectorial Determination at anniversary date from contract commencement."]
[6,"The price for Labour (Part 1 below) will be escalated annually, in line with the published PSIRA Sectoral Determination price increase."]
[7,"Bidders MUST NOT change this Pricing Template; any change of the template by the Bidders may render their bid as non-responsive."]
[8,"Bidders must complete the Pricing Template, print the spreadsheet, initial each page, sign and submit in hardcopy, as well as in electronic (EXCEL) format."]
[9,"The quoted prices MUST be inclusive of all CCSA requirements, as per the BID document. No additional costs will be considered post award."]
[10,"The total bid prices (period of 3 years with an estimated esclation price of 10% included) must be populated in the signed Standard Bid Document (SBD) 3.3 to be submitted with this document in sealed enevelope."]
[null,"PART 1: SECURITY OFFICERS"]
[null,"Site","Description","Quantity","Unit Cost (Excl. Vat)","Subtotal","VAT","Total Cost Per Month"]
[]
[null,"Supervisor (Grade B)",null,2,{"v":0,"d":"R 0.00"},{"$f":"SUM(D27*E27)","v":{"v":0,"d":"R 0.00"}},{"v":0.15,"d":"15%"},{"$f":"SUM(F27*G27)+F27","v":{"v":0,"d":"R 0.00"}}]
[null,"Block C","Security Officer Grade C Day (Mon-Sun & PH) ",2,{"v":0,"d":"R 0.00"},{"$f":"SUM(D28*E28)","v":{"v":0,"d":"R 0.00"}},{"v":0.15,"d":"15%"},{"$f":"SUM(F28*G28)+F28","v":{"v":0,"d":"R 0.00"}}]
[null,null,"Security Officer Grade C  Night (Mon-Sun & PH) ",2,{"v":0,"d":"R 0.00"},{"v":0,"d":"R 0.00"},{"v":0.15,"d":"15%"},{"v":0,"d":"R 0.00"}]
[null,"Block G","Security Officer Grade C Day (Mon-Sun & PH)",2,{"v":0,"d":"R 0.00"},{"v":0,"d":"R 0.00"},{"v":0.15,"d":"15%"},{"v":0,"d":"R 0.00"}]
[null,null,"Security Officer Grade C Night (Mon-Sun & PH)",2,{"v":0,"d":"R 0.00"},{"v":0,"d":"R 0.00"},{"v":0.15,"d":"15%"},{"v":0,"d":"R 0.00"}]
[null,null,"Security Officer Grade C  Day (Mon-Sun & PH) - Second floor",1,{"v":0,"d":"R 0.00"},{"v":0,"d":"R 0.00"},{"v":0.15,"d":"15%"},{"v":0,"d":"R 0.00"}]
[null,null,"Security Officer Grade C  Day (Mon-Sun & PH) - Parking",1,{"v":0,"d":"R 0.00"},{"v":0,"d":"R 0.00"},{"v":0.15,"d":"15%"},{"v":0,"d":"R 0.00"}]
[null,null,"Security Officer Grade C  Day (Mon-Sun & PH) - Control Room",2,{"v":0,"d":"R 0.00"},{"v":0,"d":"R 0.00"},{"v":0.15,"d":"15%"},{"v":0,"d":"R 0.00"}]
[null,null,"Security Officer Grade C  Night (Mon-Sun & PH) - Control Room",2,{"v":0,"d":"R 0.00"},{"v":0,"d":"R 0.00"},{"v":0.15,"d":"15%"},{"v":0,"d":"R 0.00"}]
[null,"Reliever ","Security Officer Grade C (as and when required)",3,{"v":0,"d":"R 0.00"},{"v":0,"d":"R 0.00"},{"v":0.15,"d":"15%"},{"v":0,"d":"R 0.00"}]
[null,"Total Monthly Fee (unit price per guard must include ",{"$nulls":5},{"$f":"SUM(H27:H36)","v":{"v":0,"d":"R 0.00"}}]
[null,"**This includes, but is not limited to, payment of remuneration (including bonus, shifts allowance, overtime) timeously per the relevant employment agreement and at the minimum wage rates; provision for leave (sick, annual, paternity, maternity etc.); registration of Security Officers under provident/pension fund and payment of employer’s contributions thereunder, as stipulated in the applicable prescripts: Sectorial Determination: Private Security Sector, South Africa published under relevant Government Gazette as amended."]
[{"$nulls":6},"Year 1",{"$f":"SUM(H37)*12","v":{"v":0,"d":"R 0.00"}}]
[{"$nulls":6},"Year 2",{"$f":"SUM(H39)*10%+H39","v":{"v":0,"d":"R 0.00"}}]
[{"$nulls":6},"Year 3",{"$f":"SUM(H40)*10%+H40","v":{"v":0,"d":"R 0.00"}}]
[null,"** excalation estimated at 10% subject to PSIRA Rates and Sectoria Determination ",{"$nulls":5},{"$f":"SUM(H39:H41)","v":{"v":0,"d":"R 0.00"}}]
[null,"Signatures:"]
[]
[]
[]
[]
[null,"Company Representative: Name",null,"Company Representative: Job Title",{"$nulls":3},"Date"]